bitfinex/quotes_SOLUSD_20241205
["timestamp","ask_amount","ask_price","bid_price","bid_amount"]
[1733360854946,20.0,225.46,225.37,7.7043]
[1733360855454,14.60767147,225.49,225.38,0.88490815]
[1733360855747,8.7620862,225.53,225.41,5.0]
[1733360856050,5.58030947,225.57,225.41,5.0]
[1733360856225,5.58030947,225.57,225.4,0.88470593]
[1733360856550,5.58030947,225.57,225.39,6.6402]
[1733360857050,20.0,225.52,225.39,1.6402]
[1733360857352,95.58030947,225.52,225.39,1.6402]
[1733360857898,20.0,225.48,225.39,1.6402]
[1733360858729,3.70587785,225.48,225.39,1.6402]
[1733360860047,20.0,225.44,225.33,1.6484]
[1733360860544,3.70587785,225.43,225.33,1.6484]
[1733360873936,70.0,225.41,225.33,1.6484]
[1733360874232,20.0,225.37,225.33,1.6484]
[1733360875235,20.0,225.37,225.27,43.23526667]
[1733360876567,20.0,225.35,225.27,43.23526667]
[1733360883858,20.0,225.35,225.27,41.66666667]
[1733360885677,20.0,225.37,225.27,41.66666667]
[1733360885868,15.05371395,225.4,225.28,0.88540462]
[1733360887045,20.0,225.37,225.28,0.88540462]
[1733360887243,20.0,225.37,225.29,8.0402]
[1733360888069,15.05371395,225.4,225.3,0.88520702]
[1733360889272,20.0,225.37,225.3,0.88520702]
[1733360889687,20.0,225.37,225.29,8.0402]
[1733360895180,3.96369865,225.46,225.3,0.88523246]
[1733360895344,6.11908725,225.42,225.29,8.92541448]
[1733360895550,6.11908725,225.42,225.31,5.0]
[1733360895773,8.8380832,225.46,225.33,1.5504]
[1733360896076,6.11908725,225.47,225.34,0.88501201]
[1733360896579,6.11908725,225.47,225.35,6.5724]
[1733360897179,20.0,225.44,225.35,6.5724]
[1733360897474,20.0,225.4,225.35,6.5724]
[1733360899768,20.0,225.39,225.35,6.5724]
[1733360902916,21.60695829,225.47,225.35,6.5724]
[1733360903056,20.0,225.43,225.35,6.5724]
[1733360903383,20.0,225.45,225.35,6.5724]
[1733360903384,6.11908725,225.47,225.36,0.88500845]
[1733360903678,8.84676431,225.48,225.37,1.6385]
[1733360903983,75.44306419,225.53,225.37,1.6385]
[1733360904165,70.0,225.5,225.37,1.6385]
[1733360904784,20.0,225.43,225.37,1.6385]
[1733360905158,90.0,225.43,225.29,7.9866]
[1733360906772,99.04219398,225.43,225.29,7.9866]
[1733360908005,90.0,225.4,225.29,7.9866]
[1733360909174,20.0,225.39,225.29,7.9866]
[1733360909571,20.0,225.37,225.29,7.9866]
[1733360911496,20.0,225.37,225.29,1.6385]
[1733360912701,28.79488818,225.38,225.29,1.6385]
[1733360916396,20.0,225.4,225.29,1.6385]
[1733360916817,5.44306419,225.43,225.29,2.52372893]
[1733360917019,5.44306419,225.43,225.3,6.4751]
[1733360917712,5.44306419,225.43,225.31,0.88519297]
[1733360918024,6.8141636,225.52,225.4,5.0]
[1733360918327,76.8141636,225.6,225.41,5.88471581]
[1733360918505,70.0,225.6,225.41,5.88471581]
[1733360918696,79.0069892,225.6,225.41,5.88471581]
[1733360919393,20.0,225.57,225.41,5.88471581]
[1733360919708,79.0069892,225.6,225.41,5.88471581]
[1733360920225,79.0069892,225.6,225.43,5.0]
[1733360920397,79.0069892,225.6,225.44,0.88460418]
[1733360920999,79.0069892,225.6,225.42,7.7958]
[1733360921301,70.0,225.57,225.42,7.7958]
[1733360921516,20.0,225.56,225.43,5.88470762]
[1733360921800,79.0069892,225.6,225.43,5.88470762]
[1733360921801,19.5,225.57,225.43,5.88470762]
[1733360922534,19.5,225.57,225.45,5.0]
[1733360922832,9.0069892,225.6,225.46,0.88455604]
[1733360923037,70.0,225.63,225.46,0.88455604]
[1733360924115,20.0,225.6,225.46,0.88455604]
[1733360924631,20.0,225.6,225.47,1.6488]
[1733360926514,90.0,225.6,225.47,1.6488]
[1733360926809,20.0,225.54,225.47,1.6488]
[1733360927314,20.0,225.56,225.47,1.6488]
[1733360927709,20.0,225.54,225.47,1.6488]
[1733360927896,90.0,225.54,225.47,1.6488]
[1733360928098,90.0,225.54,225.42,7.8906]
[1733360928404,20.0,225.51,225.42,7.8906]
[1733360931619,20.0,225.47,225.42,1.6488]
[1733360932829,20.0,225.47,225.37,7.68]
[1733360933297,90.0,225.47,225.37,7.68]
[1733360933636,20.0,225.47,225.37,7.68]
[1733360934205,28.673732,225.47,225.37,7.68]
[1733360934736,20.0,225.46,225.37,7.68]
[1733360935039,20.0,225.44,225.37,7.68]
[1733360937902,20.0,225.4,225.31,8.0687]
[1733360938502,20.0,225.42,225.31,8.0687]
[1733360939817,20.0,225.43,225.31,8.95391571]
[1733360940518,20.0,225.44,225.31,8.95391571]
[1733360940921,8.673732,225.47,225.31,8.95391571]
[1733360941112,70.0,225.49,225.31,8.95391571]
[1733360942021,78.71112811,225.49,225.31,8.95391571]
[1733360942213,20.0,225.46,225.31,8.95391571]
[1733360948953,20.0,225.42,225.31,8.0687]
[1733360949454,90.0,225.42,225.31,8.0687]
[1733360950273,20.0,225.36,225.31,8.0687]
[1733360950625,20.0,225.36,225.27,41.66666667]
[1733360951325,90.0,225.36,225.27,41.66666667]
[1733360951745,20.0,225.36,225.27,41.66666667]
[1733360952251,137.6,225.44,225.28,0.88542896]
[1733360952252,20.0,225.41,225.28,0.88542896]
[1733360952446,77.94219739,225.45,225.28,0.88542896]
[1733360952655,76.34429739,225.45,225.28,0.88542896]
[1733360952965,85.20052126,225.45,225.28,0.88542896]
[1733360953256,8.85622387,225.45,225.29,7.852]
[1733360953457,70.0,225.48,225.3,0.88510132]
[1733360953963,78.76303783,225.48,225.3,0.88510132]
[1733360954837,20.0,225.45,225.3,0.88510132]
[1733360955560,90.0,225.45,225.29,7.852]
[1733360956437,70.0,225.42,225.29,7.852]
[1733360956649,20.0,225.39,225.29,7.852]
[1733360959461,20.0,225.37,225.29,7.852]
[1733360961038,20.0,225.37,225.29,8.73732842]
[1733360961242,20.0,225.42,225.29,8.73732842]
[1733360962049,20.0,225.4,225.29,8.73732842]
[1733360962568,20.0,225.39,225.29,7.852]
[1733360963140,20.0,225.4,225.29,7.852]
[1733360963960,20.0,225.4,225.29,8.73720109]
[1733360965045,12.39569739,225.51,225.29,8.73720109]
[1733360965046,20.0,225.46,225.3,4.9953445]
[1733360965245,20.0,225.48,225.31,0.88500531]
[1733360965645,20.0,225.48,225.32,1.6014]
[1733360965855,20.0,225.48,225.33,0.88499231]
[1733360966059,20.0,225.48,225.34,6.235]
[1733360966376,20.0,225.48,225.35,0.88495696]
[1733360966788,70.0,225.54,225.36,1.5397]
[1733360966947,70.0,225.54,225.38,1.5397]
[1733360967458,70.0,225.54,225.39,0.88485349]
[1733360967858,70.0,225.51,225.38,1.5397]
[1733360968068,20.0,225.48,225.38,1.5397]
[1733360968768,20.0,225.44,225.38,1.5397]
[1733360969155,20.0,225.47,225.38,1.5397]
[1733360970347,90.0,225.47,225.38,1.5397]
[1733360970679,99.07359944,225.47,225.38,1.5397]
[1733360974357,29.07359944,225.47,225.38,1.5397]
[1733360975989,70.0,225.53,225.38,1.5397]
[1733360976159,78.85691759,225.53,225.38,1.5397]
[1733360977378,20.0,225.5,225.38,1.5397]
[1733360978669,20.0,225.5,225.39,0.88481622]
[1733360978885,8.85691759,225.53,225.39,0.88481622]
[1733360979204,6.30266336,225.54,225.39,0.88481622]
[1733360979595,6.30266336,225.54,225.4,7.6278]
[1733360979760,8.92818181,225.55,225.41,0.88469726]
[1733360979956,221.23442063,225.59,225.41,0.88469726]
[1733360979957,83.11987367,225.59,225.41,0.88469726]
[1733360980692,6.30266336,225.58,225.41,0.88469726]
[1733360981183,20.0,225.55,225.41,0.88469726]
[1733360981763,20.0,225.55,225.4,7.6278]
[1733360981966,20.0,225.53,225.4,7.6278]
[1733360983696,20.0,225.53,225.41,0.88482282]
[1733360984071,20.0,225.55,225.43,6.0877]
[1733360984268,20.0,225.55,225.44,0.88461614]
[1733360984601,6.81721031,225.64,225.46,6.0877]
[1733360984770,6.81721031,225.65,225.47,0.88442112]
[1733360985295,76.81721031,225.66,225.49,6.6561]
[1733360985535,78.97401136,225.66,225.51,1.6143]
[1733360985671,78.97401136,225.66,225.52,0.88429958]
[1733360985672,8.97401136,225.66,225.52,0.88429958]
[1733360985871,5.84705022,225.69,225.52,0.88429958]
[1733360986104,5.84705022,225.69,225.53,6.5435]
[1733360986799,70.0,225.7,225.54,0.88426188]
[1733360987001,70.0,225.7,225.53,6.5435]
[1733360987300,82.29070191,225.7,225.53,6.5435]
[1733360987902,82.29070191,225.7,225.54,0.88426692]
[1733360988309,20.0,225.67,225.54,0.88426692]
[1733360988673,20.0,225.67,225.55,1.6577]
[1733360988872,20.0,225.67,225.56,0.88422386]
[1733360990397,3.31211884,225.75,225.57,6.4552]
[1733360990724,3.31211884,225.75,225.58,0.8840437]
[1733360991022,3.31211884,225.75,225.59,1.5979]
[1733360991226,2.53493138,225.77,225.61,6.4389]
[1733360991392,11.19537446,225.77,225.62,0.88389167]
[1733360991589,70.0,225.79,225.63,1.5979]
[1733360992030,3.31211884,225.8,225.64,0.88387028]
[1733360992195,137.6,225.82,225.65,6.4389]
[1733360992400,73.31211884,225.86,225.66,2.48163447]
[1733360992612,82.16225842,225.86,225.66,2.48163447]
[1733360993015,2.53493138,225.89,225.69,4.9953445]
[1733360993226,70.0,225.9,225.7,8.82623866]
[1733360993427,70.0,225.9,225.71,4.9953445]
[1733360993718,70.0,225.9,225.72,0.88337248]
[1733360994100,78.68491326,225.9,225.72,0.88337248]
[1733360994919,90.0,225.87,225.7,7.9428]
[1733360995136,20.0,225.79,225.7,7.9428]
[1733360996630,90.0,225.79,225.7,7.9428]
[1733360996827,20.0,225.73,225.7,7.9428]
[1733360997027,20.0,225.73,225.58,0.88388197]
[1733360997028,20.0,225.73,225.59,7.887]
[1733360998039,20.0,225.71,225.59,7.887]
[1733360998734,20.0,225.73,225.59,7.887]
[1733360999728,90.0,225.73,225.59,7.887]
[1733361000333,20.0,225.71,225.59,7.887]
[1733361000558,20.0,225.67,225.59,7.887]
[1733361001518,20.0,225.69,225.59,7.887]
[1733361001712,20.0,225.7,225.59,7.887]
[1733361001919,20.0,225.71,225.59,7.887]
[1733361002123,20.0,225.73,225.59,7.887]
[1733361002810,20.0,225.75,225.6,0.88401374]
[1733361003010,137.6,225.78,225.6,0.88401374]
[1733361003213,207.6,225.79,225.6,0.88401374]
[1733361003931,70.0,225.79,225.6,0.88401374]
[1733361004338,20.0,225.76,225.6,0.88401374]
[1733361005411,90.0,225.76,225.59,7.887]
[1733361005616,20.0,225.7,225.59,7.887]
[1733361005914,20.0,225.69,225.59,7.887]
[1733361006649,20.0,225.69,225.6,0.88406566]
[1733361006815,20.0,225.69,225.59,7.887]
[1733361007318,20.0,225.72,225.6,0.88404971]
[1733361007520,20.0,225.74,225.6,0.88404971]
[1733361008229,20.0,225.7,225.59,7.887]
[1733361009026,20.0,225.69,225.59,7.887]
[1733361009243,20.0,225.67,225.59,7.887]
[1733361010615,20.0,225.65,225.53,1.63]
[1733361010813,20.0,225.63,225.53,1.63]
[1733361011043,20.0,225.6,225.52,6.3245]
[1733361011215,20.0,225.58,225.52,6.3245]
[1733361011747,210.13493138,225.64,225.52,6.3245]
[1733361011748,20.0,225.61,225.52,6.3245]
[1733361012850,9.07003135,225.66,225.53,0.88448149]
[1733361013151,137.6,225.69,225.52,6.3245]
[1733361013629,81.53048012,225.7,225.52,6.3245]
[1733361014148,81.53048012,225.7,225.53,1.63]
[1733361014944,20.0,225.67,225.54,0.88428617]
[1733361015151,8.99554874,225.7,225.54,0.88428617]
[1733361015331,70.0,225.73,225.54,0.88428617]
[1733361015956,70.0,225.7,225.53,1.63]
[1733361016329,20.0,225.64,225.53,1.63]
[1733361016530,90.0,225.64,225.53,1.63]
[1733361016851,20.0,225.6,225.53,1.63]
[1733361017041,20.0,225.58,225.52,6.3245]
[1733361019345,28.74805045,225.58,225.52,6.3245]
[1733361020254,28.74805045,225.58,225.48,1.5227]
[1733361020959,98.74805045,225.58,225.48,1.5227]
[1733361021154,20.0,225.51,225.38,7.9671]
[1733361021761,20.0,225.53,225.39,0.88487909]
[1733361021931,20.0,225.54,225.39,0.88487909]
[1733361022127,20.0,225.57,225.39,0.88487909]
[1733361022465,98.91151807,225.57,225.39,0.88487909]
[1733361022643,28.91151807,225.57,225.39,0.88487909]
[1733361024256,28.91151807,225.57,225.4,1.5547]
[1733361024434,70.0,225.56,225.4,1.5547]
[1733361024629,20.0,225.53,225.4,1.5547]
[1733361024833,20.0,225.52,225.4,1.5547]
[1733361025034,20.0,225.5,225.4,1.5547]
[1733361025537,20.0,225.53,225.4,1.5547]
[1733361025974,20.0,225.49,225.4,1.5547]
[1733361026457,207.6,225.55,225.4,1.5547]
[1733361026458,20.0,225.52,225.4,1.5547]
[1733361027875,8.91151807,225.57,225.41,0.88477499]
[1733361028167,70.0,225.58,225.41,0.88477499]
[1733361028556,5.84705022,225.6,225.41,0.88477499]
[1733361028945,14.83226912,225.6,225.41,0.88477499]
[1733361029145,5.84705022,225.6,225.41,0.88477499]
[1733361029541,20.0,225.57,225.42,6.3624]
[1733361029748,20.0,225.58,225.43,2.44070319]
[1733361030141,90.0,225.58,225.43,1.5561]
[1733361030663,20.0,225.52,225.43,1.5561]
[1733361032373,5.84705022,225.59,225.43,2.44090661]
[1733361032540,70.0,225.62,225.44,6.3624]
[1733361032741,207.6,225.65,225.46,1.5561]
[1733361033042,70.0,225.65,225.46,1.5561]
[1733361033779,207.6,225.65,225.46,1.5561]
[1733361034282,70.0,225.61,225.46,1.5561]
[1733361034572,20.0,225.61,225.46,1.5561]
[1733361035153,90.0,225.61,225.46,1.5561]
[1733361035960,70.0,225.57,225.46,1.5561]
[1733361036278,20.0,225.53,225.44,6.3624]
[1733361036451,20.0,225.51,225.44,6.3624]
[1733361039068,28.84884097,225.51,225.44,6.3624]
[1733361039275,8.84884097,225.51,225.44,6.3624]
[1733361039470,137.6,225.55,225.44,6.3624]
[1733361039471,70.0,225.53,225.44,6.3624]
[1733361039666,70.0,225.5,225.44,6.3624]
[1733361039976,70.0,225.5,225.4,1.5035]
[1733361040582,20.0,225.47,225.4,1.5035]
[1733361040888,137.6,225.54,225.4,1.5035]
[1733361041993,70.0,225.53,225.4,1.5035]
[1733361042164,20.0,225.5,225.4,1.5035]
[1733361042862,8.65990722,225.55,225.4,1.5035]
[1733361043073,70.0,225.57,225.4,1.5035]
[1733361044162,78.67598951,225.57,225.4,1.5035]
[1733361044362,20.0,225.54,225.4,1.5035]
[1733361044592,90.0,225.54,225.4,1.5035]
[1733361044962,20.0,225.54,225.4,1.5035]
[1733361046861,90.0,225.54,225.4,1.5035]
[1733361047273,20.0,225.53,225.4,1.5035]
[1733361047460,20.0,225.48,225.4,1.5035]
[1733361049891,28.65977009,225.48,225.4,1.5035]
[1733361050798,20.0,225.48,225.4,1.5035]
[1733361050978,20.0,225.46,225.4,1.5035]
[1733361051372,20.0,225.45,225.4,1.5035]
[1733361051695,20.0,225.45,225.27,41.66666667]
[1733361051696,20.0,225.42,225.35,1.5526]
[1733361052307,20.0,225.42,225.27,47.91236667]
[1733361052308,20.0,225.38,225.27,47.91236667]
[1733361052475,90.0,225.37,225.27,47.91236667]
[1733361053609,20.0,225.37,225.27,41.66666667]
[1733361053893,20.0,225.36,225.27,41.66666667]
[1733361055167,90.0,225.36,225.27,41.66666667]
[1733361056993,20.0,225.3,225.27,41.66666667]
[1733361058589,20.0,225.33,225.27,41.66666667]
[1733361058778,20.0,225.3,225.27,41.66666667]
[1733361062887,20.0,225.32,225.27,41.66666667]
[1733361063202,8.92575715,225.36,225.27,41.66666667]
[1733361063203,20.0,225.33,225.27,41.66666667]
[1733361063714,73.86705064,225.43,225.27,41.66666667]
[1733361064014,86.88630562,225.43,225.27,41.66666667]
[1733361064297,3.86705064,225.42,225.27,41.66666667]
[1733361064728,70.0,225.39,225.27,41.66666667]
[1733361064929,20.0,225.36,225.27,41.66666667]
[1733361065217,90.0,225.36,225.27,41.66666667]
[1733361065790,20.0,225.35,225.27,41.66666667]
[1733361066395,20.0,225.33,225.27,41.66666667]
[1733361066598,70.0,225.33,225.27,41.66666667]
[1733361066893,20.0,225.3,225.27,41.66666667]
[1733361067804,20.0,225.33,225.27,41.66666667]
[1733361068028,20.0,225.28,225.27,41.66666667]
[1733361072825,70.0,225.33,225.27,41.66666667]
[1733361074098,20.0,225.3,225.27,41.66666667]
[1733361074794,78.88334912,225.33,225.27,41.66666667]
[1733361074795,20.0,225.33,225.27,41.66666667]
[1733361075314,20.0,225.31,225.27,41.66666667]
[1733361075517,1.5938,225.37,225.27,41.66666667]
[1733361075708,70.0,225.39,225.27,41.66666667]
[1733361075900,78.77146368,225.39,225.27,41.66666667]
[1733361077216,20.0,225.36,225.27,41.66666667]
[1733361081834,8.77146368,225.39,225.27,41.66666667]
[1733361082039,76.55140565,225.42,225.27,41.66666667]
[1733361082837,74.97590565,225.42,225.27,41.66666667]
[1733361083040,4.97590565,225.42,225.28,0.88540636]
[1733361083344,4.97590565,225.42,225.27,41.66666667]
[1733361083511,74.97590565,225.42,225.27,41.66666667]
[1733361084442,20.0,225.39,225.27,41.66666667]
[1733361086045,74.97590565,225.42,225.27,41.66666667]
[1733361086046,20.0,225.4,225.27,41.66666667]
[1733361087639,20.0,225.39,225.27,41.66666667]
[1733361088151,9.71718996,225.43,225.28,0.88536858]
[1733361088657,9.71718996,225.43,225.27,41.66666667]
[1733361089323,20.0,225.4,225.27,41.66666667]
[1733361093950,20.0,225.35,225.27,41.66666667]
[1733361094247,90.0,225.35,225.27,41.66666667]
[1733361099337,20.0,225.35,225.27,41.66666667]
[1733361099550,207.6,225.38,225.27,41.66666667]
[1733361099732,210.91459605,225.38,225.27,41.66666667]
[1733361099938,82.09238287,225.38,225.27,41.66666667]
[1733361100129,207.6,225.42,225.27,41.66666667]
[1733361100456,70.0,225.42,225.28,1.5795]
[1733361100853,78.83727617,225.42,225.28,1.5795]
[1733361101150,75.84705022,225.45,225.29,7.23531189]
[1733361101545,75.84705022,225.45,225.3,1.6189]
[1733361101749,5.84705022,225.45,225.31,0.88519111]
[1733361101949,4.97258343,225.5,225.33,1.6189]
[1733361102157,5.84705022,225.5,225.35,6.35]
[1733361102634,5.84705022,225.5,225.36,1.6189]
[1733361103438,70.0,225.48,225.36,1.6189]
[1733361103664,20.0,225.45,225.36,1.6189]
[1733361106465,5.84705022,225.48,225.36,1.6189]
[1733361106841,8.86254117,225.51,225.36,1.6189]
[1733361107055,70.0,225.52,225.36,1.6189]
[1733361107535,5.84705022,225.51,225.36,1.6189]
[1733361108344,20.0,225.48,225.36,1.6189]
[1733361110631,20.0,225.47,225.36,1.6189]
[1733361112634,20.0,225.48,225.36,1.6189]
[1733361113436,5.84705022,225.51,225.36,2.50389472]
[1733361114363,5.84705022,225.51,225.36,1.6189]
[1733361114741,20.0,225.48,225.36,1.6189]
[1733361119064,20.0,225.48,225.37,0.88489434]
[1733361119560,9.07023422,225.53,225.37,0.88489434]
[1733361119860,4.69958343,225.57,225.38,7.8319]
[1733361120073,4.69958343,225.57,225.39,0.88472373]
[1733361120372,4.69958343,225.57,225.4,1.6137]
[1733361121040,13.74231596,225.57,225.41,7.21861357]
[1733361121241,9.04273253,225.57,225.42,1.5677]
[1733361121466,20.0,225.6,225.43,0.88461201]
[1733361121966,24.69958343,225.6,225.43,0.88461201]
[1733361122961,4.69958343,225.6,225.44,7.9448]
[1733361123153,4.69958343,225.6,225.43,0.88461201]
[1733361123154,6.81721031,225.69,225.48,1.5759]
[1733361123365,4.69958343,225.68,225.49,7.9448]
[1733361123555,9.89201142,225.68,225.49,7.9448]
[1733361124082,5.19242799,225.67,225.49,7.9448]
[1733361124369,70.0,225.66,225.49,7.9448]
[1733361124577,20.0,225.64,225.49,7.9448]
[1733361124947,0.06246984,225.62,225.49,7.9448]
[1733361125771,24.76205327,225.62,225.49,7.9448]
[1733361125973,20.0,225.6,225.49,7.9448]
[1733361126263,20.0,225.59,225.49,7.9448]
[1733361127164,4.69958343,225.61,225.49,7.9448]
[1733361127346,20.06246984,225.62,225.49,7.9448]
[1733361127676,0.06246984,225.62,225.5,0.88445127]
[1733361128543,0.06246984,225.62,225.51,1.6493]
[1733361128780,0.06246984,225.62,225.53,1.6493]
[1733361129070,0.06246984,225.62,225.55,6.0256]
[1733361129270,0.06246984,225.62,225.56,0.8841389]
[1733361130148,0.06246984,225.62,225.57,1.5898]
[1733361130771,209.1174,225.79,225.57,1.5898]
[1733361131078,5.19242799,225.78,225.57,1.5898]
[1733361131281,20.0,225.75,225.57,1.5898]
[1733361131468,5.19242799,225.78,225.58,6.2815]
[1733361132474,70.0,225.71,225.58,6.2815]
[1733361132774,20.0,225.68,225.58,6.2815]
[1733361132980,20.0,225.67,225.58,6.2815]
[1733361133474,20.0,225.67,225.58,6.2175]
[1733361133651,20.0,225.65,225.58,6.2015]
[1733361133984,20.0,225.62,225.5,1.6241]
[1733361134347,90.0,225.62,225.5,1.6241]
[1733361134565,20.0,225.59,225.5,1.6241]
[1733361135773,0.273,225.62,225.5,1.6241]
[1733361136673,0.273,225.62,225.51,6.4877]
[1733361136848,20.0,225.59,225.51,6.4877]
[1733361137344,20.0,225.59,225.5,1.6241]
[1733361138248,20.0,225.57,225.46,6.4877]
[1733361138452,20.0,225.55,225.46,6.4877]
[1733361138680,20.0,225.52,225.45,1.5809]
[1733361139251,20.0,225.52,225.41,6.3099]
[1733361139479,20.0,225.51,225.41,6.3099]
[1733361139781,20.0,225.49,225.41,6.3099]
[1733361140282,20.0,225.52,225.41,6.3099]
[1733361140484,23.76069911,225.55,225.41,6.3099]
[1733361140981,102.7006991,225.55,225.41,6.3099]
[1733361141187,5.19242799,225.54,225.41,6.3099]
[1733361141360,20.0,225.51,225.41,6.3099]
[1733361141893,78.93999999,225.55,225.4,1.5638]
[1733361141894,20.0,225.47,225.4,1.5638]
[1733361142576,20.0,225.46,225.4,1.5638]
[1733361142892,90.0,225.46,225.36,6.2293]
[1733361143460,20.0,225.4,225.36,6.2293]
[1733361143675,20.0,225.4,225.35,1.5877]
[1733361144393,20.0,225.4,225.27,49.66016667]
[1733361144980,90.0,225.4,225.27,49.66016667]
[1733361145897,20.0,225.38,225.27,49.66016667]
[1733361146585,20.0,225.36,225.27,49.66016667]
[1733361148175,90.0,225.36,225.27,49.66016667]
[1733361151097,90.0,225.36,225.27,41.66666667]
[1733361151294,20.0,225.36,225.27,41.66666667]
[1733361151609,90.0,225.36,225.27,41.66666667]
[1733361152221,216.51519977,225.39,225.27,41.66666667]
[1733361152377,70.0,225.42,225.27,41.66666667]
[1733361153480,70.0,225.42,225.28,6.0173]
[1733361154495,20.0,225.39,225.28,6.0173]
[1733361154697,90.0,225.39,225.28,6.0173]
[1733361154876,20.0,225.39,225.28,6.0173]
[1733361155801,20.0,225.39,225.29,1.6086]
[1733361156508,20.0,225.42,225.29,1.6086]
[1733361157185,20.0,225.4,225.29,1.6086]
[1733361162302,20.0,225.39,225.29,1.6086]
[1733361163377,20.0,225.38,225.29,1.6086]
[1733361165079,20.0,225.38,225.15,9.9953445]
[1733361165080,7.5823,225.26,225.0,565.5]
[1733361165293,20.0,225.22,225.05,6.0547]
[1733361165922,5.0,225.21,225.0,565.5]
[1733361166082,5.0,225.21,225.11,26.95166256]
[1733361166083,5.0,225.12,225.11,26.95166256]
[1733361166280,5.0,225.12,225.0,565.5]
[1733361166605,20.0,225.08,225.0,565.5]
[1733361166816,20.0,225.07,225.0,565.5]
[1733361167105,33.15937176,225.07,225.0,565.5]
[1733361167305,20.0,225.03,225.0,565.5]
[1733361167513,137.6,225.02,225.0,458.95429782]
[1733361167816,147.6,225.01,225.0,407.87322661]
[1733361168110,161.28337176,225.01,225.0,307.46526554]
[1733361168310,167.23382593,225.01,225.0,269.60639905]
[1733361168481,161.28337176,225.01,225.0,262.48639905]
[1733361168681,167.83169113,225.01,225.0,262.48639905]
[1733361169142,167.83169113,225.01,225.0,223.24639905]
[1733361169909,167.83169113,225.01,225.0,192.35232813]
[1733361170207,160.75937176,225.01,225.0,192.22769186]
[1733361170414,160.75937176,225.01,225.0,185.67937249]
[1733361170611,160.75937176,225.01,225.0,40.44075488]
[1733361170808,160.75937176,225.01,224.99,20.0]
[1733361170986,10.0,224.99,224.95,41.66666667]
[1733361171186,20.0,224.96,224.95,41.66666667]
[1733361171596,33.15937176,224.96,224.95,41.66666667]
[1733361173716,137.85963568,225.0,224.95,41.66666667]
[1733361173892,140.25128474,224.99,224.95,41.66666667]
[1733361174087,144.92274958,224.99,224.95,41.66666667]
[1733361175087,5.0,224.97,224.95,41.66666667]
[1733361175311,141.21915417,224.96,224.95,41.66666667]
[1733361175614,144.92274958,224.96,224.95,41.66666667]
[1733361176494,20.0,224.92,224.91,1.99824473]
[1733361176906,20.0,224.92,224.73,9.88822314]
[1733361176907,25.0,224.9,224.73,9.88822314]
[1733361177119,20.0,224.84,224.79,47.42666667]
[1733361177415,20.0,224.8,224.79,47.42666667]
[1733361178492,27.0631139,224.8,224.79,47.42666667]
[1733361180509,164.6631139,224.8,224.79,47.42666667]
[1733361180720,33.07608307,224.8,224.79,47.42666667]
[1733361180897,33.33571875,224.8,224.79,47.42666667]
[1733361182205,28.33571875,224.8,224.79,47.42666667]
[1733361183529,28.33571875,224.8,224.79,41.66666667]
[1733361183731,28.33571875,224.8,224.79,34.54666667]
[1733361184021,38.33571875,224.8,224.79,34.54666667]
[1733361184223,5.0,224.75,224.73,9.88822314]
[1733361184428,4.38185241,224.74,224.73,9.88822314]
[1733361184614,20.0,224.7,224.69,0.5115196]
[1733361185020,27.0631139,224.7,224.69,0.5115196]
[1733361185536,32.0631139,224.7,224.69,0.5115196]
[1733361185696,37.28349552,224.7,224.69,0.5115196]
[1733361186029,28.07608307,224.7,224.63,41.66666667]
[1733361186227,21.01296917,224.7,224.63,41.66666667]
[1733361186429,27.0631139,224.69,224.63,41.66666667]